bitfinex/quotes_ETHUSD_20220113
["timestamp","ask_amount","ask_price","bid_price","bid_amount"]
[1642112600381,2.31035792,3266.2,3265.8,3.072531]
[1642112601220,0.00170527,3266.2,3265.8,3.072531]
[1642112601420,0.00170527,3266.2,3265.8,3.05]
[1642112601421,0.76728527,3266.2,3265.8,3.05]
[1642112602422,0.76728527,3266.2,3265.8,3.074647]
[1642112603221,0.67496042,3266.2,3265.8,3.074647]
[1642112605972,1.44058042,3266.2,3265.8,3.05]
[1642112606573,1.54900982,3265.9,3265.8,3.05]
[1642112607372,0.76562,3266.1,3265.8,3.05]
[1642112607573,2.30865265,3266.0,3265.8,3.05]
[1642112611028,1.54843666,3265.9,3265.8,3.05]
[1642112615283,0.1224,3266.1,3265.8,3.05]
[1642112615484,2.30865265,3266.1,3265.8,3.05]
[1642112616126,1.54897917,3265.9,3265.8,3.05]
[1642112618125,1.54897917,3266.0,3265.8,3.05]
[1642112618926,2.31035792,3266.2,3265.8,3.05]
[1642112618927,1.54897917,3265.9,3265.8,3.05]
[1642112619574,2.30865265,3266.1,3265.8,3.05]
[1642112619779,3.83990265,3266.1,3265.8,3.05]
[1642112619974,3.07427265,3266.1,3265.8,3.05]
[1642112620375,3.19667265,3266.1,3265.8,3.05]
[1642112620575,2.30865265,3266.0,3265.8,3.05]
[1642112620775,3.07430265,3266.0,3265.8,3.05]
[1642112621078,2.30865265,3266.0,3265.8,3.05]
[1642112621779,1.55055218,3265.9,3265.8,3.05]
[1642112622676,3.39574356,3266.0,3265.8,3.35]
[1642112622877,2.63009356,3266.0,3265.8,3.35]
[1642112623425,2.63009356,3265.9,3265.8,3.35]
[1642112623828,2.63009356,3265.9,3265.8,3.05]
[1642112624027,2.63009356,3266.0,3265.8,3.05]
[1642112624629,3.39575356,3266.0,3265.8,3.05]
[1642112624828,2.63009356,3266.0,3265.8,3.05]
[1642112625626,1.54847636,3265.9,3265.8,3.05]
[1642112626326,1.4261063,3265.9,3265.8,3.05]
[1642112626826,4.05619986,3265.9,3265.8,3.05]
[1642112627479,1.4261063,3265.9,3265.8,3.05]
[1642112628080,3.32697194,3266.1,3265.8,3.05]
[1642112628282,2.63009356,3266.0,3265.8,3.05]
[1642112629088,5.70440621,3266.0,3265.8,3.05]
[1642112630188,2.63009356,3265.9,3265.8,3.05]
[1642112632146,5.17439754,3265.9,3265.8,3.05]
[1642112632341,2.63009356,3265.9,3265.8,3.05]
[1642112633144,5.70440621,3266.0,3265.8,3.05]
[1642112633443,2.54032676,3265.9,3265.8,3.05]
[1642112633947,5.17042032,3265.9,3265.8,3.05]
[1642112634143,2.63009356,3265.9,3265.8,3.05]
[1642112634574,5.16828194,3265.9,3265.8,3.05]
[1642112634774,4.93874621,3265.9,3265.8,3.05]
[1642112635877,5.17965952,3265.9,3265.8,3.05]
[1642112636277,2.75249356,3265.9,3265.8,3.05]
[1642112636480,3.05249356,3265.9,3265.8,3.05]
[1642112636677,2.75249356,3265.9,3265.8,3.05]
[1642112637480,2.63009356,3265.9,3265.8,3.05]
[1642112638526,2.75249356,3265.9,3265.8,3.05]
[1642112640325,2.63009356,3265.9,3265.8,3.05]
[1642112641634,2.63009356,3266.0,3265.8,3.05]
[1642112642473,4.93874621,3266.0,3265.8,3.05]
[1642112643275,4.93874621,3266.1,3265.8,3.05]
[1642112643876,1.55054352,3265.9,3265.8,3.05]
[1642112644785,1.55054352,3266.0,3265.8,3.05]
[1642112646939,1.55054352,3265.9,3265.8,3.05]
[1642112647734,3.39568356,3266.1,3265.8,3.05]
[1642112647735,1.55054352,3266.0,3265.8,3.05]
[1642112648036,2.63009356,3265.9,3265.8,3.05]
[1642112650776,4.18063708,3265.9,3265.8,3.05]
[1642112651479,2.63009356,3265.9,3265.8,3.05]
[1642112651877,2.63009356,3265.9,3265.8,3.0]
[1642112652477,5.70438621,3266.0,3265.8,3.0]
[1642112653177,2.63009356,3265.9,3265.8,3.0]
[1642112654730,2.63009356,3266.0,3265.8,3.0]
[1642112655528,1.66919598,3266.0,3265.8,3.0]
[1642112656631,2.63009356,3265.9,3265.8,3.0]
[1642112657283,4.93874621,3266.0,3265.8,3.0]
[1642112658177,4.93874621,3266.1,3265.8,3.0]
[1642112659077,1.5466965,3265.9,3265.8,3.0]
[1642112662640,1.5466965,3266.0,3265.8,3.0]
[1642112663236,1.8466965,3266.0,3265.8,3.0]
[1642112663436,0.3,3266.0,3265.8,3.0]
[1642112663637,0.4224,3266.0,3265.8,3.0]
[1642112663837,0.1224,3266.0,3265.8,3.0]
[1642112664437,4.17679006,3265.9,3265.8,3.0]
[1642112666379,4.47679006,3265.9,3265.8,3.0]
[1642112666981,1.8466965,3265.9,3265.8,3.0]
[1642112667783,4.47679006,3265.9,3265.8,3.0]
[1642112669027,2.93009356,3265.9,3265.8,3.0]
[1642112669728,8.13207314,3265.9,3265.8,2.69569462]
[1642112669929,8.87747417,3265.9,3264.7,2.00838301]
[1642112670133,0.96459,3265.5,3264.7,2.00838301]
[1642112670330,0.1225,3265.4,3265.2,0.00397897]
[1642112670530,1.1225,3265.4,3265.2,0.00397897]
[1642112670730,0.76594,3265.3,3265.2,0.00397897]
[1642112670930,1.06594,3265.3,3265.2,0.00397897]
[1642112671131,2.19204,3265.3,3264.8,0.00625266]
[1642112671330,0.76608,3265.1,3264.4,0.00852635]
[1642112671533,0.3,3265.0,3264.4,0.00852635]
[1642112671731,0.76617,3264.7,3264.4,0.00852635]
[1642112671932,0.1225,3264.6,3264.4,0.00852635]
[1642112672180,2.99950122,3264.6,3264.4,0.00852635]
[1642112672581,1.0,3264.5,3264.4,0.00852635]
[1642112672781,4.94090007,3264.5,3264.4,0.00852635]
[1642112672980,5.24090007,3264.5,3264.4,0.00852635]
[1642112673179,5.24090007,3264.5,3264.4,3.10852635]
[1642112673378,5.24090007,3264.5,3264.4,3.1]
[1642112673578,2.18867,3264.5,3264.4,3.10852635]
[1642112674179,1.18867,3264.5,3264.4,3.10852635]
[1642112674379,3.80885289,3264.5,3264.4,3.10852635]
[1642112674578,4.81876356,3264.5,3264.4,3.10852635]
[1642112675579,7.56598716,3264.5,3264.4,3.10852635]
[1642112676835,4.81876356,3264.5,3264.4,3.10852635]
[1642112677833,4.69626356,3264.5,3264.4,3.10852635]
[1642112678235,7.31740714,3264.5,3264.4,3.10852635]
[1642112678434,4.69626356,3264.5,3264.4,3.10852635]
[1642112679039,2.63009356,3264.5,3264.4,3.15398935]
[1642112680282,2.63009356,3264.5,3264.4,4.49025491]
[1642112680480,2.63009356,3264.9,3264.4,4.61275491]
[1642112680685,2.63009356,3264.9,3264.8,0.045463]
[1642112681084,2.63009356,3264.9,3264.8,0.05171566]
[1642112682482,2.63009356,3265.2,3264.8,0.05171566]
[1642112682683,2.63009356,3265.2,3264.8,0.00625266]
[1642112682884,2.93009356,3265.2,3264.9,0.00568424]
[1642112683186,2.93009356,3265.2,3264.8,0.02807466]
[1642112683430,2.93009356,3265.2,3264.9,0.028515]
[1642112683631,2.93009356,3265.2,3264.9,0.03419924]
[1642112683830,2.93009356,3265.2,3265.0,0.00511581]
[1642112684030,2.63009356,3265.1,3265.0,0.00511581]
[1642112684630,2.63009356,3265.1,3264.9,0.00568424]
[1642112684830,2.63009356,3265.1,3264.9,0.03231524]
[1642112685030,2.63009356,3265.1,3265.0,0.045463]
[1642112685230,2.63009356,3265.1,3265.0,0.03086281]
[1642112686332,2.63009356,3265.1,3265.0,0.00511581]
[1642112686530,2.63009356,3265.1,3265.0,0.03596981]
[1642112686732,6.70132348,3265.7,3265.0,0.15846981]
[1642112686733,3.52382348,3265.7,3265.0,0.15846981]
[1642112686932,3.40132348,3265.7,3265.6,0.045463]
[1642112687380,3.40132348,3265.7,3265.6,0.04716827]
[1642112687782,3.40132348,3265.7,3265.6,0.00170527]
[1642112688180,4.3439,3266.2,3265.6,0.03508127]
[1642112688384,0.1224,3266.2,3265.6,0.03508127]
[1642112688581,0.1224,3266.3,3265.7,0.00113685]
[1642112688979,0.12467369,3266.3,3265.7,0.00113685]
[1642112689782,0.12467369,3266.3,3265.6,0.00170527]
[1642112690081,0.12467369,3266.3,3265.6,0.02823427]
[1642112690281,0.12467369,3266.3,3265.7,0.031061]
[1642112690484,0.12467369,3266.3,3265.7,0.00113685]
[1642112690940,0.12467369,3266.3,3265.5,0.02409569]
[1642112691132,0.12467369,3266.3,3265.6,0.02352727]
[1642112691431,0.12467369,3266.3,3265.7,0.00113685]
[1642112692034,0.12467369,3266.3,3265.6,0.00170527]
[1642112692232,0.12467369,3266.3,3265.5,0.00227369]
[1642112692834,0.12467369,3266.3,3265.8,0.037477]
[1642112693033,0.12467369,3266.3,3265.6,0.029022]
[1642112693438,0.89032369,3266.3,3265.7,0.00113685]
[1642112694235,0.89032369,3266.3,3265.5,0.00227369]
[1642112694436,0.89032369,3266.3,3265.7,0.00113685]
[1642112694686,0.89032369,3266.3,3265.5,0.02409569]
[1642112694884,0.89032369,3266.3,3265.6,0.00170527]
[1642112695083,1.65599369,3266.3,3265.6,0.00170527]
[1642112697183,0.76567,3266.2,3265.6,0.02472627]
[1642112697583,0.00113685,3266.1,3265.7,0.00113685]
[1642112698446,0.00113685,3266.1,3265.6,0.00170527]
[1642112698845,0.00113685,3266.1,3265.8,0.036165]
[1642112699046,0.00113685,3266.1,3265.6,0.02470527]
[1642112699245,0.00113685,3266.1,3265.7,0.027654]
[1642112699447,0.00113685,3266.1,3265.7,0.02879085]
[1642112700347,0.00113685,3266.1,3265.7,0.02818185]
[1642112700548,0.12353685,3266.1,3265.7,0.00113685]
[1642112701347,0.12353685,3266.1,3265.6,0.00170527]
[1642112701552,0.12353685,3266.1,3265.6,0.02352727]
[1642112701950,0.12353685,3266.1,3265.7,0.00113685]
[1642112702384,0.12353685,3266.1,3265.5,0.00227369]
[1642112702587,0.12353685,3266.1,3265.5,0.02409569]
[1642112702985,0.12353685,3266.1,3265.6,0.00170527]
[1642112703386,2.63015096,3266.0,3265.5,0.00227369]
[1642112704386,2.63015096,3266.0,3265.5,0.02566869]
[1642112704585,2.63015096,3266.0,3265.5,0.00227369]
[1642112704786,2.63015096,3266.0,3265.6,0.00170527]
[1642112704985,2.63015096,3266.0,3265.5,0.00227369]
[1642112705585,2.63015096,3266.0,3265.5,0.02465769]
[1642112705831,2.93015096,3266.0,3265.5,0.00227369]
[1642112706031,2.93015096,3266.0,3265.6,0.00170527]
[1642112706233,2.93015096,3266.0,3265.5,0.00227369]
[1642112707734,2.63015096,3265.9,3265.5,0.00227369]
[1642112708535,2.63015096,3266.0,3265.5,0.00227369]
[1642112709138,2.63015096,3265.8,3265.5,0.00227369]
[1642112709337,2.63015096,3265.8,3265.7,0.045463]
[1642112709782,2.63015096,3265.8,3265.7,0.00113685]
[1642112709983,2.63015096,3266.0,3265.7,0.00113685]
[1642112710183,2.63015096,3266.0,3265.7,0.02813385]
[1642112710384,2.63015096,3266.0,3265.7,0.02634285]
[1642112710586,2.63015096,3266.0,3265.7,0.00113685]
[1642112710784,2.63015096,3266.0,3265.7,0.02431685]
[1642112710989,2.63015096,3266.0,3265.6,0.00170527]
[1642112711285,2.63015096,3266.0,3265.6,0.03014127]
[1642112711489,2.75255096,3266.0,3265.7,0.028943]
[1642112711786,2.63015096,3266.0,3265.7,0.03007985]
[1642112711987,2.63015096,3266.0,3265.8,0.027909]
[1642112712186,2.63015096,3266.0,3265.7,0.00113685]
[1642112712387,2.63015096,3266.0,3265.9,0.032963]
[1642112712587,2.63015096,3266.0,3265.9,0.024796]
[1642112712788,2.63015096,3266.0,3265.6,0.02352727]
[1642112712988,2.63015096,3266.0,3265.9,0.045463]
[1642112713431,2.63015096,3266.0,3265.9,0.4913393]
[1642112714333,0.00113685,3266.1,3265.9,0.9137393]
[1642112714532,0.00113685,3266.1,3266.0,0.045463]
[1642112717589,0.00113685,3266.1,3266.0,0.038484]
[1642112717789,0.00113685,3266.1,3265.8,0.1224]
[1642112717988,0.00113685,3266.1,3266.0,0.027572]
[1642112721034,0.00113685,3266.1,3265.9,0.3]
[1642112721035,0.00113685,3266.1,3265.9,0.321822]
[1642112721236,0.00113685,3266.1,3265.8,0.021822]
[1642112721444,0.1224,3266.0,3265.7,0.00113685]
[1642112721637,1.1224,3266.0,3265.7,0.00113685]
[1642112722038,0.1224,3266.0,3265.7,0.00113685]
[1642112722836,0.88812,3266.0,3265.7,0.00113685]
[1642112723435,2.84012877,3265.9,3265.5,0.00227369]
[1642112723635,1.8882,3265.8,3265.5,0.00227369]
[1642112723836,2.64046087,3265.7,3265.5,0.00227369]
[1642112724035,1.1224,3265.6,3265.5,0.00227369]
[1642112724687,3.72538711,3265.6,3265.5,0.00227369]
[1642112725085,1.1224,3265.6,3265.5,0.00227369]
[1642112725283,2.75255096,3265.6,3265.5,0.00227369]
[1642112725684,5.35387924,3265.6,3265.5,0.00227369]
[1642112725885,6.35387924,3265.6,3265.5,0.00227369]
[1642112727486,6.30387924,3265.6,3265.5,0.00227369]
[1642112727686,8.61170449,3265.6,3265.5,0.00227369]
[1642112728642,6.30387924,3265.6,3265.5,0.00227369]
[1642112729441,3.70255096,3265.6,3265.5,0.00227369]
[1642112729845,6.37803743,3265.6,3265.5,0.00227369]
[1642112730043,3.70255096,3265.6,3265.5,0.00227369]
[1642112730646,6.33881243,3265.6,3265.5,0.00227369]
[1642112730843,6.26641243,3265.6,3265.5,0.00227369]
[1642112732584,8.57413173,3265.6,3265.5,0.00227369]
[1642112733383,6.26641243,3265.6,3265.5,0.00227369]
[1642112735484,5.9362221,3265.6,3265.5,0.00227369]
[1642112737139,8.51955338,3265.6,3265.5,0.00227369]
[1642112738141,5.9362221,3265.6,3265.5,0.00227369]
[1642112738343,8.50741794,3265.6,3265.5,0.00227369]
[1642112738744,4.9362221,3265.6,3265.5,0.00227369]
[1642112738945,4.9362221,3265.6,3265.5,0.02472069]
[1642112739143,4.9362221,3265.6,3265.5,0.05206269]
[1642112739144,4.15946281,3265.6,3265.5,0.05206269]
[1642112739983,2.63015096,3265.7,3265.5,0.05206269]
[1642112740384,2.63015096,3265.7,3265.6,0.00170527]
[1642112740584,2.63015096,3265.7,3265.6,0.02575927]
[1642112740783,2.63015096,3265.7,3265.6,0.05474127]
[1642112741184,4.15946281,3265.9,3265.6,0.05474127]
[1642112741386,4.15946281,3265.9,3265.6,0.00170527]
[1642112741586,4.15946281,3265.9,3265.7,0.00113685]
[1642112741787,4.15946281,3265.9,3265.6,0.00170527]
[1642112742591,2.63015096,3265.9,3265.6,0.00170527]
[1642112742793,0.76576,3265.8,3265.6,0.00170527]
[1642112743192,3.39591096,3265.8,3265.6,0.00170527]
[1642112743839,3.39591096,3265.8,3265.5,0.00227369]
[1642112744036,4.16170096,3265.8,3265.5,0.00227369]
[1642112744236,2.63015096,3265.7,3265.5,0.00227369]
[1642112745536,2.63015096,3265.7,3265.5,0.02508769]
[1642112745940,2.63015096,3265.7,3265.6,0.00170527]
[1642112746941,3.63015096,3265.7,3265.6,0.00170527]
[1642112747602,3.63015096,3265.7,3265.5,0.00227369]
[1642112748500,2.63015096,3265.6,3265.5,0.00227369]
[1642112750102,2.63015096,3265.6,3265.5,0.02556769]
[1642112750300,0.3,3265.6,3265.5,0.00227369]
[1642112750703,1.3,3265.6,3265.5,0.00227369]
[1642112751335,3.93015096,3265.6,3265.5,0.00227369]
[1642112752236,2.63015096,3265.6,3265.5,0.02808769]
[1642112752637,2.63015096,3265.6,3265.5,0.03022069]
[1642112752837,2.63015096,3265.6,3265.5,0.00227369]
[1642112753238,2.63015096,3265.6,3265.5,0.03303669]
[1642112754238,2.63015096,3265.6,3265.5,0.00227369]
[1642112754887,2.63015096,3265.6,3265.5,0.02744669]
[1642112755287,1.53719714,3265.6,3265.5,0.00227369]
[1642112756087,3.39591096,3265.7,3265.5,0.00227369]
[1642112756286,2.63015096,3265.6,3265.5,0.00227369]
[1642112756687,2.93015096,3265.6,3265.5,0.00227369]
[1642112756886,3.93015096,3265.6,3265.5,0.00227369]
[1642112757088,5.46760314,3265.6,3265.5,0.00227369]
[1642112758189,3.93015096,3265.6,3265.5,0.00227369]
[1642112759634,3.93015096,3265.6,3265.4,1.50227369]
[1642112759836,1.0,3265.5,3265.4,1.50227369]
[1642112760039,0.3,3265.5,3265.4,1.50227369]
[1642112760436,0.4224,3265.5,3265.4,1.55712869]
[1642112760639,4.37186092,3265.6,3265.4,1.55712869]
[1642112761037,2.63015096,3265.5,3265.4,1.50227369]
[1642112761937,2.63015096,3265.5,3265.4,1.52806269]
[1642112762188,2.63015096,3265.5,3265.4,1.50227369]
[1642112762389,4.16809687,3265.5,3265.4,1.52618669]
[1642112762588,4.16809687,3265.5,3265.4,1.50227369]
[1642112763189,2.63015096,3265.5,3265.4,1.50227369]
[1642112763589,2.63015096,3265.5,3265.4,1.52456669]
[1642112763788,2.63015096,3265.5,3265.4,1.55185169]
[1642112765491,2.63015096,3265.5,3265.4,1.50227369]
[1642112765941,2.63015096,3265.5,3265.4,1.55423369]
[1642112766136,3.93015096,3265.5,3265.4,1.50227369]
[1642112766337,4.23015096,3265.5,3265.4,1.50227369]
[1642112767039,2.63015096,3265.5,3265.4,1.54773669]
[1642112770485,2.63015096,3265.5,3265.4,1.50227369]
[1642112771090,2.63015096,3265.5,3265.4,1.52836969]
[1642112771490,2.63015096,3265.5,3265.4,1.50227369]
[1642112771888,2.63015096,3265.5,3265.4,1.53633969]
[1642112772590,2.63015096,3265.5,3265.4,1.53922169]
[1642112772791,2.63015096,3265.5,3265.4,1.53804469]
[1642112772991,2.63015096,3265.5,3265.4,1.50227369]
[1642112773191,2.63015096,3265.5,3265.4,1.54773669]
[1642112773639,2.63015096,3265.5,3265.4,1.52624169]
[1642112774941,2.63015096,3265.5,3265.4,1.50227369]
[1642112775138,2.63015096,3265.5,3265.4,1.54070469]
[1642112775741,2.63015096,3265.5,3265.4,1.50227369]
[1642112775939,2.63015096,3265.5,3265.4,1.52865569]
[1642112776844,2.63015096,3265.5,3265.4,1.50227369]
[1642112777095,2.63015096,3265.5,3265.4,1.52506069]
[1642112778887,2.63015096,3265.5,3265.4,1.52918669]
[1642112779087,2.63015096,3265.5,3265.4,1.50227369]
[1642112779287,2.63015096,3265.5,3265.4,1.52698969]
[1642112783940,2.93015096,3265.5,3265.4,1.52698969]
[1642112785385,2.93015096,3265.5,3265.4,1.77698969]
[1642112785787,2.93015096,3265.5,3265.4,1.75227369]
[1642112789338,2.93015096,3265.5,3265.4,1.77707669]
[1642112789739,2.93015096,3265.5,3265.4,1.75227369]
[1642112792092,4.46920099,3265.5,3265.4,1.75227369]
[1642112792888,2.93015096,3265.5,3265.4,1.75227369]
[1642112793788,5.56436028,3265.5,3265.4,1.75227369]
[1642112794591,2.93015096,3265.5,3265.4,1.75227369]
[1642112794993,5.53327169,3265.5,3265.4,1.75227369]
[1642112795392,2.93015096,3265.5,3265.4,1.75227369]
[1642112797238,4.46990927,3265.5,3265.4,1.75227369]
[1642112798838,4.16990927,3265.5,3265.4,1.75227369]
[1642112800887,4.46990927,3265.5,3265.4,1.75227369]
[1642112802095,2.93015096,3265.5,3265.4,1.75227369]
[1642112802290,2.63015096,3265.5,3265.4,1.75227369]
[1642112803742,2.63015096,3265.6,3265.4,1.78899669]
[1642112803940,2.93015096,3265.6,3265.4,1.75227369]
[1642112804341,1.54072965,3265.5,3265.4,1.75227369]
[1642112804745,1.54072965,3265.5,3265.4,1.77713869]
[1642112805343,2.63015096,3265.5,3265.4,1.77713869]
[1642112807188,2.63015096,3265.5,3265.4,1.75227369]
[1642112807589,2.63015096,3265.5,3265.4,1.77767969]
[1642112811238,2.63015096,3265.5,3265.4,1.75227369]
[1642112811837,6.26153104,3265.5,3265.4,1.75227369]
[1642112812041,0.76594,3265.4,3264.8,0.1224]
[1642112812239,2.8134102,3264.9,3264.8,0.1224]
[1642112812442,3.07887845,3264.9,3264.8,0.1224]
[1642112812638,4.67887845,3264.9,3264.8,0.1224]
[1642112812839,3.67887845,3264.9,3264.8,0.1224]
[1642112813040,4.67887845,3264.9,3264.1,1.94781693]
[1642112813240,1.5320588,3264.6,3263.8,4.39904404]
[1642112813439,1.5320588,3264.6,3264.2,0.00738951]
[1642112813440,0.1225,3264.5,3264.2,0.00738951]
[1642112813640,0.4225,3264.5,3264.2,0.00738951]
[1642112814241,1.95458,3264.5,3264.2,0.00738951]
[1642112814897,2.63015096,3264.4,3264.2,0.00738951]
[1642112815689,2.63015096,3264.4,3264.2,3.1]
[1642112816090,2.63015096,3264.4,3264.3,0.00682109]
[1642112817490,2.63015096,3264.4,3264.3,0.02952709]
[1642112819239,2.63015096,3264.4,3264.3,0.00682109]
[1642112819645,2.63015096,3264.4,3264.3,0.02881409]
[1642112821739,2.63015096,3264.4,3264.3,0.00682109]
[1642112823895,2.63015096,3264.4,3264.2,2.63014309]
[1642112826939,2.63015096,3264.4,3264.3,0.038149]
[1642112827542,2.63015096,3264.4,3264.2,2.63014309]
[1642112829790,2.63015096,3264.4,3264.2,2.63227809]
[1642112829990,2.63015096,3264.4,3264.2,2.63291209]
[1642112830390,2.93015096,3264.4,3264.3,0.037721]
[1642112830595,2.63015096,3264.4,3264.2,2.63291209]
[1642112830792,2.63015096,3264.4,3264.3,0.035826]
[1642112831392,2.93015096,3264.4,3264.2,2.63291209]
[1642112831591,0.3,3264.4,3264.2,2.63014309]
[1642112831791,1.53208,3264.5,3264.3,0.077348]
[1642112831990,1.53208,3264.5,3264.4,0.037477]
[1642112832192,1.53208,3264.5,3264.3,0.077348]
[1642112832390,0.3,3264.4,3264.3,0.031885]
[1642112832692,0.3,3264.4,3264.2,2.65196509]
[1642112832890,1.53321685,3264.5,3264.2,2.65196509]
[1642112833094,0.3,3264.4,3264.3,0.032247]
[1642112833339,0.00113685,3264.5,3264.2,2.63014309]
[1642112833540,0.00113685,3264.5,3264.2,2.65758409]
[1642112833939,0.00113685,3264.5,3264.3,0.03215]
[1642112834140,0.00113685,3264.5,3264.4,0.045463]
[1642112834342,0.00113685,3264.5,3264.4,0.031969]
[1642112834544,2.63214033,3264.5,3264.4,0.031969]
[1642112834742,2.93214033,3264.5,3264.4,0.060523]
[1642112835342,3.05464033,3264.5,3264.4,0.060523]
[1642112835542,3.05464033,3264.5,3264.2,2.60832109]
[1642112835943,2.93214033,3264.5,3264.2,2.60832109]
[1642112837109,1.83320685,3264.5,3264.2,2.60832109]
[1642112837897,2.63101522,3264.4,3264.2,2.63306709]
[1642112838097,2.63101522,3264.4,3264.2,2.60832109]
[1642112839400,3.39708982,3264.4,3264.2,2.60832109]
[1642112839601,0.3,3264.3,3264.2,2.60832109]
[1642112841138,2.93101522,3264.3,3264.2,2.60832109]
[1642112841839,2.63101522,3264.3,3264.2,2.60832109]
[1642112844045,2.63101522,3264.3,3264.2,2.63122009]
[1642112844242,2.63101522,3264.3,3264.2,2.60832109]
[1642112844890,4.16866589,3264.3,3264.2,2.60832109]
[1642112845289,4.46866589,3264.3,3264.2,2.60832109]
[1642112845691,0.3,3264.3,3264.2,2.60832109]
[1642112846093,4.76866589,3264.4,3264.2,2.60832109]
[1642112847098,2.63101522,3264.3,3264.2,2.60832109]
[1642112848750,2.63101522,3264.3,3264.2,2.63243609]
[1642112848950,2.63101522,3264.3,3264.2,2.60832109]
[1642112850048,2.63101522,3264.3,3264.2,2.63071909]
[1642112850750,3.23101522,3264.4,3264.2,2.63071909]
[1642112851353,2.63101522,3264.3,3264.2,2.63071909]
[1642112853112,2.63101522,3264.3,3264.2,2.66606609]
[1642112853712,2.63101522,3264.3,3264.2,2.63071909]
[1642112854316,2.63101522,3264.4,3264.2,2.63071909]
[1642112855715,2.63101522,3264.4,3264.2,2.63233109]
[1642112856748,2.93101522,3264.4,3264.2,2.63233109]
[1642112857643,2.63101522,3264.3,3264.2,2.63233109]
[1642112859047,2.63101522,3264.4,3264.2,2.63233109]
[1642112863200,2.63101522,3264.4,3264.3,0.037477]
[1642112863443,2.63101522,3264.4,3264.2,2.66204609]
[1642112864044,4.93466589,3264.5,3264.2,2.66204609]
[1642112864942,2.63101522,3264.4,3264.2,2.66204609]
[1642112865543,2.63101522,3264.4,3264.3,0.035044]
[1642112868595,2.63101522,3264.4,3264.2,2.63803609]
[1642112873449,2.93101522,3264.4,3264.2,2.63803609]
[1642112874348,2.63101522,3264.3,3264.2,2.63803609]
[1642112874598,2.63101522,3264.3,3264.2,2.63293109]
[1642112875493,2.63101522,3264.3,3264.2,2.66443509]
[1642112875894,2.63101522,3264.4,3264.2,2.66443509]
[1642112881249,2.63101522,3264.4,3264.2,2.63293109]
[1642112885298,2.63101522,3264.4,3264.3,0.028252]
[1642112885499,3.23101522,3264.4,3264.3,0.028252]
[1642112885698,2.63101522,3264.4,3264.2,2.60832109]
[1642112885945,0.1225,3264.3,3264.2,2.60832109]
[1642112886143,2.75351522,3264.4,3264.2,2.60832109]
[1642112886743,2.75351522,3264.4,3264.2,2.63602509]
[1642112886945,2.75351522,3264.4,3264.2,2.60832109]
[1642112887443,2.63101522,3264.4,3264.2,2.63122209]
[1642112887747,2.63101522,3264.3,3264.2,2.63122209]
[1642112888546,2.63101522,3264.3,3264.2,2.60832109]
[1642112888746,2.63101522,3264.4,3264.2,2.60832109]
[1642112890193,1.0,3265.3,3264.3,0.05636834]
[1642112890400,1.0,3265.3,3264.7,0.037477]
[1642112890401,0.1225,3265.2,3264.7,0.037477]
[1642112890593,0.1225,3265.2,3264.9,0.035105]
[1642112890796,0.76583,3265.1,3265.0,0.037477]
[1642112890992,3.40854121,3265.3,3265.0,0.037477]
[1642112891196,3.40854121,3265.3,3265.0,0.07765978]
[1642112891394,0.00511581,3265.2,3265.0,0.07765978]
[1642112891794,0.00454739,3265.1,3265.0,0.07765978]
[1642112891994,2.32812155,3265.1,3265.0,0.07765978]
[1642112892193,2.32812155,3265.1,3265.0,0.05000478]
[1642112892795,2.32812155,3265.1,3265.0,0.037477]
[1642112893650,0.00454739,3265.1,3265.0,0.037477]
[1642112897197,0.00454739,3265.1,3265.0,3.137477]
[1642112910650,1.94715262,3265.1,3265.0,3.137477]
[1642112911349,0.00454739,3265.1,3265.0,3.77510675]
[1642112912195,1.94715262,3265.1,3265.0,3.77510675]
[1642112912796,0.00454739,3265.1,3265.0,3.77510675]
[1642112913195,0.00454739,3265.1,3265.0,3.73762975]
[1642112913396,1.94715262,3265.1,3265.0,3.73762975]
[1642112914196,0.00454739,3265.1,3265.0,3.73762975]
[1642112915003,1.94715262,3265.1,3265.0,3.73762975]
[1642112915858,0.00454739,3265.1,3265.0,3.73762975]
[1642112916450,1.94715262,3265.1,3265.0,3.73762975]
[1642112917148,0.00454739,3265.1,3265.0,3.73762975]
[1642112917750,1.94715262,3265.1,3265.0,3.73762975]
[1642112918351,0.00454739,3265.1,3265.0,3.73762975]
[1642112919453,1.94715262,3265.1,3265.0,3.73762975]
[1642112920097,0.00454739,3265.1,3265.0,3.73762975]
[1642112920897,1.94715262,3265.1,3265.0,3.76477875]
[1642112921499,0.00454739,3265.1,3265.0,3.76477875]
[1642112922198,1.94260523,3265.2,3265.0,3.73762975]
[1642112922398,1.94260523,3265.1,3265.0,3.76378775]
[1642112922998,0.00625266,3265.4,3265.0,3.76378775]
[1642112923199,0.00625266,3265.4,3265.1,0.032065]
[1642112923447,0.00568424,3265.3,3265.1,0.032065]
[1642112923747,0.00511581,3265.2,3265.1,0.032065]
[1642112924746,0.00511581,3265.2,3265.1,0.66969475]
[1642112930402,0.00511581,3265.2,3265.1,0.71515775]
[1642112938644,0.00511581,3265.2,3265.1,0.66969475]
[1642112938841,1.96395816,3265.2,3265.1,0.66969475]
[1642112939243,1.96395816,3265.2,3265.1,0.70021075]
[1642112947751,1.96395816,3265.2,3265.1,1.70021075]
[1642112947948,1.96395816,3265.2,3265.1,1.82271075]
[1642112948349,0.00511581,3265.2,3265.1,1.82271075]
[1642112954069,0.1225,3266.0,3265.1,1.82271075]
[1642112954269,0.1224,3266.1,3265.8,0.037477]
[1642112954469,0.00909478,3265.9,3265.8,0.037477]
[1642112954669,0.00909478,3265.9,3265.8,0.08294]
[1642112955068,0.00909478,3265.9,3265.8,0.037477]
[1642112955269,1.95635405,3265.9,3265.8,0.045463]
[1642112955670,1.95635405,3265.9,3265.5,0.021822]
[1642112955869,1.95635405,3265.9,3265.7,0.037477]
[1642112956068,0.00852636,3265.8,3265.6,0.037477]
[1642112956468,1.94725927,3265.9,3265.7,0.045463]
[1642112956669,1.94725927,3265.9,3265.8,0.045463]
[1642112956869,0.1224,3266.2,3265.8,0.045463]
[1642112957305,0.01023163,3266.1,3265.8,0.045463]
[1642112957506,0.1224,3266.0,3265.8,0.027533]
[1642112957707,0.1320632,3266.0,3265.8,0.027533]
[1642112957905,0.00909478,3265.9,3265.8,0.027533]
[1642112958111,0.00909478,3265.9,3265.7,0.045463]
[1642112958606,0.00852636,3265.8,3265.6,3.1]
[1642112958806,0.00852636,3265.8,3265.7,0.037075]
[1642112959007,0.1224,3266.2,3265.7,0.037075]
[1642112959207,0.1224,3266.2,3265.8,0.036942]
[1642112959409,0.1224,3266.2,3265.7,0.65707156]
[1642112959410,1.54079247,3266.0,3265.7,0.65707156]